Cogmind - Beta 16 @@@ ROGUE MODE // 2025.11.10 @ 23:43:36 Player: jumpy Result: Destroyed by Alpha 7 via exploding Antimatter Diverter Performance ------------- Evolutions (8) 4000 Regions Visited (17) 3400 Robots Destroyed (78) 390 Value Destroyed (2307) 2307 Prototype IDs (32) 640 Alien Tech Used (3) 600 Bonus (864) 864 TOTAL SCORE: 12201 Bonus ------- Follower Combat Kills 64 Met Zhirov 300 Scanned by Researcher 500 Cogmind --------- Core Integrity 0/1450 Matter 38/300 Energy 100/100 System Corruption 17% Temperature Cool (0) Movement Core (50) Location -2/Quarantine Parts ------- > --- POWER (2) -------- (None) > --- PROPULSION (8) --- (None) > --- UTILITY (10) ----- Advanced Signal Interpreter Ghost Barrier > --- WEAPON (3) ------- (None) > --- INVENTORY (5) ---- Advanced Heat Sink Advanced Terrain Scan Processor Particle Accelerator Omega Cannon Peak State ------------ > --- POWER ------------ Particle Reactor Micro Antimatter Reactor > --- PROPULSION ------- Gravmag Array Cooled Gravmag System Cooled Gravmag System Improved Gyrokinetic Inverter Improved Linear Gravjet Improved Linear Gravjet Combat Linear Gravjet > --- UTILITY ---------- Experimental Cooling System Large Storage Unit Advanced Sensor Array Advanced Signal Interpreter Advanced Targeting Computer Core Analyzer Core Analyzer Layered Medium Armor Plating System Mapper Ghost Barrier > --- WEAPON ----------- Omega Cannon > --- INVENTORY -------- Particle Reactor Micro Antimatter Reactor Improved Linear Gravjet Antigrav Array Advanced Heat Sink Advanced Terrain Scanner Advanced Terrain Scan Processor Particle Accelerator Advanced Reaction Control System Improved System Guard Enhanced Gauss Cannon Omega Cannon Heavy Missile Launcher [Rating: 160] Favorites ----------- Power Ion Engine Engine Ion Engine Power Core Micro Fission Core Reactor Particle Reactor Propulsion Aerolev Unit Leg Aluminum Leg Hover Unit Aerolev Unit Utility Core Analyzer Device Seismic Detector Storage Large Storage Unit Processor Core Analyzer Hackware System Mapper Protection Hardened Light Armor Plating Weapon Heavy Assault Rifle Energy Gun Medium Laser Energy Cannon Advanced Plasma Cannon Ballistic Gun Heavy Assault Rifle Ballistic Cannon Magnetic Acceleration Cannon Launcher Heavy Missile Launcher Special Weapon Advanced Remote Datajack Impact Weapon Powered Hammer Build | -11 -10 -9 -8 -7 -6 -5 -4 -4 -4 -4 -4 -4 -3 -3 -3 -2 -2 ------- Run | Yrd Mat Mat Mat Fac Fac Fac Fac Was Fac Upp Upp Zhi Pro Res Tes Res Qua Slots Evolved 16 | . . 2 2 2 2 2 2 . . . . . . 2 . 2 . Power 1 | . . . . . . . 1 . . . . . . . . . . Propulsion 6 | . . . 1 1 1 1 1 . . . . . . . . 1 . Utility 8 | . . 1 1 1 1 1 . . . . . . . 2 . 1 . Weapon 1 | . . 1 . . . . . . . . . . . . . . . Parts Attached 87 | 8 . 5 6 8 4 10 7 . 1 . 3 4 1 8 17 2 3 Power 9 | 1 . . . 1 . 1 1 . . . 1 . . 1 3 . . Engine 2 | 1 . . . . . 1 . . . . . . . . . . . Core 2 | . . . . 1 . . 1 . . . . . . . . . . Reactor 5 | . . . . . . . . . . . 1 . . 1 3 . . Propulsion 25 | 2 . . 3 1 1 3 2 . . . 1 3 . 2 3 1 3 Treads . | . . . . . . . . . . . . . . . . . . Leg 2 | 2 . . . . . . . . . . . . . . . . . Wheel . | . . . . . . . . . . . . . . . . . . Hover 23 | . . . 3 1 1 3 2 . . . 1 3 . 2 3 1 3 Flight . | . . . . . . . . . . . . . . . . . . Utility 32 | 2 . 2 1 2 2 2 4 . 1 . 1 1 1 4 8 1 . Device 11 | 1 . . . . 1 . 1 . 1 . 1 . . 1 5 . . Storage 3 | 1 . 1 . . . . 1 . . . . . . . . . . Processor 8 | . . 1 1 2 1 . 2 . . . . . . 1 . . . Hackware 4 | . . . . . . . . . . . . . . 1 2 1 . Protection 6 | . . . . . . 2 . . . . . 1 1 1 1 . . Artifact . | . . . . . . . . . . . . . . . . . . Weapon 21 | 3 . 3 2 4 1 4 . . . . . . . 1 3 . . Energy Gun 6 | 1 . 1 1 2 1 . . . . . . . . . . . . Energy Cannon 1 | . . . . . . . . . . . . . . 1 . . . Ballistic Gun 5 | 2 . 2 . . . . . . . . . . . . 1 . . Ballistic Cannon 6 | . . . 1 . . 4 . . . . . . . . 1 . . Launcher 1 | . . . . 1 . . . . . . . . . . . . . Special Weapon 1 | . . . . . . . . . . . . . . . 1 . . Impact Weapon 1 | . . . . 1 . . . . . . . . . . . . . Slashing Weapon . | . . . . . . . . . . . . . . . . . . Piercing Weapon . | . . . . . . . . . . . . . . . . . . Special Melee Weapon . | . . . . . . . . . . . . . . . . . . Unidentified Prototypes 21 | . . . 2 1 1 . 2 . . . . 3 . 1 9 1 1 Parts Lost 29 | . . 1 1 . . 1 . . . . 1 . . 6 3 1 15 Power 4 | . . . . . . . . . . . . . . 1 1 . 2 Propulsion 12 | . . . 1 . . 1 . . . . 1 . . 1 1 1 6 Utility 10 | . . . . . . . . . . . . . . 3 . . 7 Weapon 3 | . . 1 . . . . . . . . . . . 1 1 . . Highest Loss Streak 15 | . . 1 1 . . 1 . . . . 1 . . 6 1 1 15 To Critical Strikes . | . . . . . . . . . . . . . . . . . . Average Backups 10 | 5 7 7 9 9 8 9 11 15 14 15 15 15 15 13 14 11 12 Power 1 | . 1 1 1 1 1 1 1 1 1 1 1 1 1 . 1 2 1 Propulsion 1 | 1 2 2 3 2 1 2 1 2 2 2 1 1 1 1 1 . 1 Utility 5 | . 2 2 4 5 4 4 7 10 9 10 10 10 10 8 8 7 6 Weapon 1 | 1 2 2 . . 2 1 2 2 2 2 2 2 2 1 2 2 2 Tool/Special . | . . . . . . . . . . . . . . . . . . Unused Backups 26 | 1 . . 5 5 1 2 2 . . . . 2 . 1 1 . 6 Power 2 | . . . . 1 . . . . . . . . . 1 . . . Propulsion 4 | . . . 2 1 . 1 . . . . . . . . . . . Utility 14 | . . . 1 3 . . 2 . . . . 2 . . 1 . 5 Weapon 6 | 1 . . 2 . 1 1 . . . . . . . . . . 1 Tool/Special . | . . . . . . . . . . . . . . . . . . Average Slot Usage (%) 91 | . 100 94 82 99 99 95 93 94 93 94 93 94 94 87 91 86 76 Engine 3 | . 14 11 9 3 . . 5 5 5 5 3 . . . . . . Core 2 | . . . . 3 6 4 5 5 5 5 5 5 5 3 2 . . Reactor 2 | . . . . . . . . . . . 2 5 5 3 5 8 6 Leg 4 | . 28 22 12 . . . . . . . . . . . . . . Hover 22 | . . . . 30 33 30 30 31 31 31 30 31 31 27 28 30 27 Device 7 | . 14 11 9 6 5 5 5 5 8 5 6 9 5 4 9 8 6 Storage 6 | . 14 11 9 7 6 5 5 5 5 5 5 5 5 4 4 4 4 Processor 17 | . . 11 14 22 26 23 21 21 21 21 21 21 21 18 19 17 15 Hackware 1 | . . . . . . . . . . . . . . 2 3 7 7 Protection 2 | . . . . . . 4 5 5 1 5 3 . 5 6 3 4 2 Energy Gun 3 | . 14 11 8 6 5 . . . . . . . . . . . . Ballistic Gun 6 | . 14 17 17 15 13 . . . . . . . . . 3 . . Ballistic Cannon 4 | . . . . . . 10 10 10 10 10 10 10 10 6 . 4 3 Impact Weapon 2 | . . . . . . 4 5 5 5 5 5 5 5 4 2 . . Peak Build Rating 160 | 7 8 14 32 42 50 69 93 90 93 91 95 105 104 115 146 157 160 Average Rating 66 | 6 7 12 19 38 49 63 86 90 92 91 92 98 102 106 124 152 140 On Entrance 71 | . 7 8 14 32 42 50 69 90 90 91 91 95 102 104 109 139 156 Avg Prop Armor Cover (%) 2 | . . . . . . . . . . . . . . . . . 2 Naked Turns . | . . . . . . . . . . . . . . . . . . Heaviest Build 78 | 15 15 25 25 30 31 45 60 60 58 58 61 61 67 69 78 78 78 Greatest Support 88 | 20 20 20 24 32 40 54 66 66 66 66 66 71 71 73 75 87 88 Greatest Overweight (x) 2 | . . 1 2 . . . . . . . 1 . . . 1 . 1 Average Overweight (x) . | . . . 1 . . . . . . . . . . . . . . Largest Inventory Capacity 15 | 8 8 10 10 10 10 10 15 15 15 15 15 15 15 15 15 15 15 Average Capacity 11 | 7 8 8 10 10 10 10 14 15 15 15 15 15 15 15 15 15 14 Most Carried 15 | 7 8 9 10 10 10 10 15 15 15 15 15 15 15 15 15 14 15 Average Carried 10 | 5 7 7 9 9 8 9 11 15 14 15 14 14 15 13 14 11 14 Final Capacity 15 | 8 8 10 10 10 10 10 15 15 15 15 15 15 15 15 15 15 5 Final Carried 15 | 6 8 9 10 10 10 10 15 15 15 15 15 15 15 13 14 13 5 Class Distribution -------------------- 40% | Mutant 20% | Gunner 15% | Hacker-Sprinter 13% | Sprinter 5% | Scavenger-Gunner 3% | Hacker-Mutant Dominant Class ---------------- Mutant | -10/Materials Scavenger-Gunner | -9/Materials Gunner | -8/Materials Gunner | -7/Factory Gunner | -6/Factory Mutant | -5/Factory Mutant | -4/Factory Mutant | -4/Waste Mutant | -4/Factory Mutant | -4/Upper Caves Mutant | -4/Upper Caves Sprinter | -4/Zhirov Sprinter | -3/Proximity Caves Sprinter | -3/Research Hacker-Sprinter | -3/Testing Hacker-Sprinter | -2/Research Hacker-Sprinter | -2/Quarantine Resources | -11 -10 -9 -8 -7 -6 -5 -4 -4 -4 -4 -4 -4 -3 -3 -3 -2 -2 ----------- Run | Yrd Mat Mat Mat Fac Fac Fac Fac Was Fac Upp Upp Zhi Pro Res Tes Res Qua Matter Collected 2518 | 373 39 117 104 121 11 493 369 . . 66 86 . 81 113 347 198 . Remotely . | . . . . . . . . . . . . . . . . . . Salvage Created 3031 | 316 164 305 236 245 82 323 412 . . . 201 . 61 265 271 150 . Parts 141 | 27 10 18 18 11 6 23 6 . . . 3 . 1 1 10 7 . Haulers Intercepted 3 | . . . 1 . . 1 . . . . . . . 1 . . . Recyclers Shooed 5 | . 1 . . 1 . 1 2 . . . . . . . . . . Parts Field Recycled . | . . . . . . . . . . . . . . . . . . Retrieved Matter . | . . . . . . . . . . . . . . . . . . Parts Self-Destructed 1 | . . . . . . . . . . . 1 . . . . . . Prevented 1 | . . . . . . . . . . . 1 . . . . . . Parts Restored . | . . . . . . . . . . . . . . . . . . Kills | -11 -10 -9 -8 -7 -6 -5 -4 -4 -4 -4 -4 -4 -3 -3 -3 -2 -2 ------- Run | Yrd Mat Mat Mat Fac Fac Fac Fac Was Fac Upp Upp Zhi Pro Res Tes Res Qua Combat Hostiles Destroyed 41 | . 4 4 5 4 1 7 2 . . . 3 . . 2 2 7 . Guns 20 | . 4 4 5 4 1 . . . . . . . . . 2 . . Cannons 9 | . . . . . . 3 2 . . . 2 . . . . 2 . AOE 9 | . . . . . . 4 . . . . . . . . . 5 . Classes Destroyed 13 | 3 1 2 2 . . 2 . . . . 1 . . 1 1 . . Worker 10 | 4 . . 1 1 . 2 1 . . . . . . . . 1 . Builder 1 | . . . . . . 1 . . . . . . . . . . . Tunneler 10 | 9 . . . . . 1 . . . . . . . . . . . Hauler 3 | . . . 1 . . 1 . . . . . . . 1 . . . Recycler 6 | 1 . 1 . . . . 3 . . . . . . . 1 . . Operator 5 | . . 1 . 1 1 . 1 . . . . . . 1 . . . Watcher 2 | . . . . . . 2 . . . . . . . . . . . Swarmer 13 | . . . 3 . . 4 . . . . . . . . . 6 . Grunt 15 | . 4 . . 4 . 3 . . . . 3 . . . 1 . . Sentry 10 | . . 4 2 . 1 . 2 . . . . . . . . 1 . Hunter 2 | . . . . . . . . . . . . . . 2 . . . Programmer 1 | . . . . . . . . . . . . . . . 1 . . Decomposer 3 | . . . . . . . . . . . . . 3 . . . . Samaritan 1 | . . . . . . . . . . . 1 . . . . . . Best Kill Streak 6 | 3 4 2 4 3 1 6 2 . . . 3 . . 2 2 5 . Combat Bots Only 5 | . 4 2 3 2 1 5 1 . . . 3 . . 2 2 5 . Max Kills in Single Turn 2 | 1 1 1 1 1 1 2 1 . . . 1 . 1 1 1 2 . Gunslinging . | . . . . . . . . . . . . . . . . . . Exploded 2 | . . . . . . 2 . . . . . . . . . 2 . Melee . | . . . . . . . . . . . . . . . . . . Uniques/NPCs Destroyed . | . . . . . . . . . . . . . . . . . . Combat | -11 -10 -9 -8 -7 -6 -5 -4 -4 -4 -4 -4 -4 -3 -3 -3 -2 -2 -------- Run | Yrd Mat Mat Mat Fac Fac Fac Fac Was Fac Upp Upp Zhi Pro Res Tes Res Qua Hostile Shots Fired 578 | . 16 24 20 16 42 38 16 . . 4 20 . . 105 58 16 203 Missed 187 | . . 9 5 5 14 16 7 . . 3 5 . . 36 27 8 52 Hits 391 | . 16 15 15 11 28 22 9 . . 1 15 . . 69 31 8 151 Projectile 391 | . 16 15 15 11 28 22 9 . . 1 15 . . 69 31 8 151 AOE 6 | . . . . . 5 . . . . . . . . . . . 1 Critical Strikes 21 | . . . . 1 . . . . . . 1 . . 1 . . 18 Part Disruptions 2 | . . . . . . . . . . . . . . . . . 2 Damage Taken 7528 | . 179 223 185 169 369 416 210 . . 18 354 . . 1135 630 328 3312 Core 1750 | . 22 60 38 29 23 69 . . . . 46 . . 42 47 44 1330 Absorbed by Shields . | . . . . . . . . . . . . . . . . . . Redirected to Shielding 106 | . . . . . . . . . . . . . . 106 . . . Regen/Repaired (Parts) 189 | . . . . . . . . . . . . . . . . . 189 Core Remaining (%) 92 | 100 91 85 93 95 97 93 . . . . . . 96 . 84 . . Volleys Fired 172 | 31 14 20 12 16 6 25 11 . 1 . 4 . 4 1 9 13 5 Largest 3 | 2 2 3 3 3 3 2 2 . 2 . 2 . 1 1 2 1 1 Hottest 131 | 70 70 102 107 115 115 84 91 . 91 . 91 . 44 98 131 100 100 Shots Fired 349 | 62 28 43 34 49 18 46 22 . 2 . 8 . 4 1 14 13 5 Gun 238 | 62 28 43 32 49 18 . . . . . . . . . 6 . . Cannon 105 | . . . 2 . . 42 22 . 2 . 8 . 4 1 8 11 5 Launcher 6 | . . . . . . 4 . . . . . . . . . 2 . Special . | . . . . . . . . . . . . . . . . . . Kinetic 238 | 31 14 23 24 33 12 42 22 . 2 . 8 . 4 . 7 11 5 Thermal 105 | 31 14 20 10 16 6 . . . . . . . . 1 7 . . Explosive 6 | . . . . . . 4 . . . . . . . . . 2 . Electromagnetic . | . . . . . . . . . . . . . . . . . . Robot Hit Streak 12 | 4 4 8 5 9 12 11 7 . . . 5 . . . 8 11 . Robot Miss Streak 3 | 3 2 2 2 2 1 1 1 . 2 . 1 . . . 1 1 . Penetration Max 1 | . . . . . . . 1 . . . . . . . . . . Secondary Targets 2 | . 1 . 1 . . . . . . . . . . . . . . Max Gunslinging Chain 1 | . 1 . 1 . . . . . . . . . . . . . . Shots Hit Robots 239 | 31 19 31 17 30 15 25 25 . . . 8 . 3 18 11 6 . Core Hits 114 | 15 8 13 10 15 4 19 9 . . . 5 . . . 5 10 1 Critical Kills . | . . . . . . . . . . . . . . . . . . Critical Parts Destroyed 5 | . . . . . . 1 1 . . . 1 . . 1 1 . . Critical Strikes 18 | 3 1 . . 1 . 1 5 . . . 2 . . 1 2 2 . Burn 5 | 3 1 . . 1 . . . . . . . . . . . . . Destroy 1 | . . . . . . . . . . . . . . . 1 . . Blast 8 | . . . . . . . 4 . . . 1 . . . 1 2 . Smash 4 | . . . . . . 1 1 . . . 1 . . 1 . . . Melee Attacks 57 | . . . . 2 . 4 7 . . 1 3 . 5 28 7 . . Impact 57 | . . . . 2 . 4 7 . . 1 3 . 5 28 7 . . Slashing . | . . . . . . . . . . . . . . . . . . Piercing . | . . . . . . . . . . . . . . . . . . Sneak Attacks 10 | . . . . . . 2 4 . . . . . 3 1 . . . Combat Hostiles . | . . . . . . . . . . . . . . . . . . Follow-up Attacks . | . . . . . . . . . . . . . . . . . . Damage Inflicted 7726 | 390 263 413 282 533 244 1307 1163 . . . 275 . 263 862 394 1085 252 Guns 2258 | 390 263 413 282 533 244 . . . . . . . . . 133 . . Cannons 2076 | . . . . . . 506 634 . . . 236 . . . 229 471 . Explosions 1196 | . . . . . . 582 . . . . . . . . . 614 . Melee 1940 | . . . . . . 219 529 . . . 39 . 263 862 28 . . Ramming 256 | . . . . . . . . . . . . . . . 4 . 252 Kinetic 3339 | 214 125 244 182 374 127 506 634 . . . 236 . . . 226 471 . Thermal 995 | 176 138 169 100 159 117 . . . . . . . . . 136 . . Explosive 1196 | . . . . . . 582 . . . . . . . . . 614 . Electromagnetic . | . . . . . . . . . . . . . . . . . . Impact 1940 | . . . . . . 219 529 . . . 39 . 263 862 28 . . Slashing . | . . . . . . . . . . . . . . . . . . Piercing . | . . . . . . . . . . . . . . . . . . Highest Corruption 17 | . 1 . . 4 5 . . 5 5 . . . . . 5 . 17 Average Corruption 4 | . 1 . . 4 5 . . 5 2 . . . . . 4 . 8 Corruption Purged 5 | . . . . . . . . . 5 . . . . . . . . Corruption Blocked . | . . . . . . . . . . . . . . . . . . Effects 15 | . 1 . . 4 2 . . . 1 . . . . . 2 . 5 Message Errors 1 | . . . . . . . . . . . . . . . 1 . . Matter Fused 3 | . . . . . . . . . 1 . . . . . . . 2 Heat Flow Errors 7 | . 1 . . 3 1 . . . . . . . . . . . 2 Data Loss (minor) 2 | . . . . . 1 . . . . . . . . . . . 1 Misfires 1 | . . . . 1 . . . . . . . . . . . . . Alerts 1 | . . . . . . . . . . . . . . . 1 . . Overload Shots . | . . . . . . . . . . . . . . . . . . Overflow Damage 967 | . . . . . . 178 179 . . . 39 . 236 162 63 88 22 Projectiles 167 | . . . . . . 16 . . . . . . . . 63 88 . Explosions 13 | . . . . . . 13 . . . . . . . . . . . Melee 787 | . . . . . . 149 179 . . . 39 . 236 162 . . 22 Knockbacks 22 | . . . . . . 5 4 . . . 1 . . 7 . 2 3 Impact 14 | . . . . . . 1 4 . . . . . . 7 . . 2 Kinetic 7 | . . . . . . 4 . . . . 1 . . . . 2 . Secondary 1 | . . . . . . . . . . . . . . . . . 1 Self-Inflicted Damage 236 | . . . . . . 20 . . . . . . . . 2 89 125 Shots 2 | . . . . . . 1 . . . . . . . . . 1 . Rammed 8 | . . . . . . . . . . . . . . . 1 . 7 Targets Rammed 8 | . . . . . . . . . . . . . . . 1 . 7 Kicked . | . . . . . . . . . . . . . . . . . . Crushed . | . . . . . . . . . . . . . . . . . . Highest Temperature 362 | 45 362 75 109 267 234 179 238 . 33 5 139 . 19 64 . 18 140 Average Temperature 71 | 15 240 28 40 85 115 38 73 . 20 3 79 . 10 47 . 6 82 Received Heat Transfer 741 | . 96 63 18 117 54 99 45 . . 9 96 . . 18 63 18 45 Effects 3 | . . . . . 3 . . . . . . . . . . . . Interference 3 | . . . . . 3 . . . . . . . . . . . . Siege Activations . | . . . . . . . . . . . . . . . . . . Martial Activations . | . . . . . . . . . . . . . . . . . . Shielding Activations . | . . . . . . . . . . . . . . . . . . Robots Disrupted . | . . . . . . . . . . . . . . . . . . Combat Hostiles . | . . . . . . . . . . . . . . . . . . Robots Corrupted 8 | . . . . . . . 3 . . . 1 . . 4 . . . Combat Hostiles 3 | . . . . . . . . . . . 1 . . 2 . . . Parts Fried 14 | . . . . . . 1 8 . . . 1 . . 4 . . . Impact Corruptions 29 | . . . . . . 4 6 . . . 1 . 7 9 . . 2 Robots Melted . | . . . . . . . . . . . . . . . . . . Combat Hostiles . | . . . . . . . . . . . . . . . . . . Parts Melted 4 | 2 . . 1 . 1 . . . . . . . . . . . . Heat Transferred 2679 | 740 481 481 185 370 222 . . . . . . . . . 200 . . Parts Sabotaged . | . . . . . . . . . . . . . . . . . . Parts Stolen . | . . . . . . . . . . . . . . . . . . Parts Stripped . | . . . . . . . . . . . . . . . . . . Power Chain Reactions . | . . . . . . . . . . . . . . . . . . Alert | -11 -10 -9 -8 -7 -6 -5 -4 -4 -4 -4 -4 -4 -3 -3 -3 -2 -2 ------- Run | Yrd Mat Mat Mat Fac Fac Fac Fac Was Fac Upp Upp Zhi Pro Res Tes Res Qua Maximum Alert Level 1 | . . . . . . 1 . . . . . . . . . 1 . Low Security (%) 96 | 100 100 100 100 100 100 84 100 100 100 . . . . 100 100 79 100 Level 1 3 | . . . . . . 15 . . . . . . . . . 20 . Level 2 . | . . . . . . . . . . . . . . . . . . Level 3 . | . . . . . . . . . . . . . . . . . . Level 4 . | . . . . . . . . . . . . . . . . . . Level 5 . | . . . . . . . . . . . . . . . . . . High Security . | . . . . . . . . . . . . . . . . . . Max Security . | . . . . . . . . . . . . . . . . . . Peak Influence 331 | 10 91 70 65 66 61 331 154 36 18 . . . . 30 170 267 180 Initial 154 | . . 29 . . 27 24 154 36 18 . . . . . . 88 144 Average 56 | 1 24 23 13 31 16 114 111 33 6 . . . . 3 56 166 112 Influence Increases 2433 | 70 101 130 150 191 94 529 129 . 8 45 70 . . 84 287 389 156 Destroy 0b10 Robot/C 860 | . 80 80 100 80 20 140 40 . . . 60 . . 40 40 180 . Destroy 0b10 Robot/NC 190 | 70 . 10 10 10 5 35 25 . . . . . . 10 5 10 . Destroy Leader 228 | . 20 40 32 20 10 24 20 . . . 10 . . 12 10 30 . Allied During Kill 8 | . . . . . . . . . . . . . . . 1 7 . Successful Hack 134 | . . . 4 5 14 . 4 . 6 . . . . 14 30 . 57 Disable Machine 135 | . . . . 15 . . 15 . . . . . . . 60 15 30 Destroy Structure 278 | . 1 . 4 1 . 90 10 . 2 . . . . 8 6 147 9 Partial Spotted 30 | . . . . . . 15 15 . . . . . . . . . . Lose Combat Pursuer 570 | . . . . 60 45 225 . . . 45 . . . . 135 . 60 Influence Decreases 2413 | 70 30 201 150 135 99 265 341 77 34 30 65 20 . 84 129 290 393 Entered New Map 541 | . . 42 . . 29 27 161 67 8 . 4 20 . . . 70 113 Time Decay 1612 | 70 30 149 150 135 70 218 180 10 26 30 51 . . 64 109 170 150 Lost Part 200 | . . 10 . . . 10 . . . . 10 . . 20 20 10 120 Lost Ally 60 | . . . . . . 10 . . . . . . . . . 40 10 Squads Dispatched 20 | . 2 . 1 4 . 4 1 . 1 . . . . . 3 1 3 Investigation 5 | . 1 . . 3 . 1 . . . . . . . . . . . Extermination 6 | . . . . . . 1 1 . . . . . . . 2 1 1 Reinforcement 9 | . 1 . 1 1 . 2 . . 1 . . . . . 1 . 2 Assault . | . . . . . . . . . . . . . . . . . . Garrison . | . . . . . . . . . . . . . . . . . . Intercept . | . . . . . . . . . . . . . . . . . . Searches Triggered . | . . . . . . . . . . . . . . . . . . Construction Impeded 1 | . . . . . . 1 . . . . . . . . . . . Haulers Reinforced 1 | . . . . . . 1 . . . . . . . . . . . Active Scanning Responses . | . . . . . . . . . . . . . . . . . . Cargo Convoy Interrupts . | . . . . . . . . . . . . . . . . . . Stealth | -11 -10 -9 -8 -7 -6 -5 -4 -4 -4 -4 -4 -4 -3 -3 -3 -2 -2 --------- Run | Yrd Mat Mat Mat Fac Fac Fac Fac Was Fac Upp Upp Zhi Pro Res Tes Res Qua Distress Signals 13 | . . . 1 2 1 . 1 . 1 . . . . 2 3 . 2 Communications Jammed . | . . . . . . . . . . . . . . . . . . Distress Signals . | . . . . . . . . . . . . . . . . . . Times Spotted 134 | . 6 8 8 9 7 24 6 4 1 2 4 . . 7 19 8 21 Peak Tracking Total 16 | . 2 2 3 3 4 8 4 4 2 3 3 . . 4 16 5 14 Tactical Retreats 13 | . . . . 2 2 5 . . . 1 . . . . 1 . 2 Traps | -11 -10 -9 -8 -7 -6 -5 -4 -4 -4 -4 -4 -4 -3 -3 -3 -2 -2 ------- Run | Yrd Mat Mat Mat Fac Fac Fac Fac Was Fac Upp Upp Zhi Pro Res Tes Res Qua Traps Triggered 8 | . 1 . 1 . . 2 1 . . . . . . . . 1 2 Indirectly . | . . . . . . . . . . . . . . . . . . Trap Hack Attempts . | . . . . . . . . . . . . . . . . . . Triggered . | . . . . . . . . . . . . . . . . . . Disarmed . | . . . . . . . . . . . . . . . . . . Reprogrammed . | . . . . . . . . . . . . . . . . . . Reused . | . . . . . . . . . . . . . . . . . . Traps Extracted . | . . . . . . . . . . . . . . . . . . Installed . | . . . . . . . . . . . . . . . . . . Triggered . | . . . . . . . . . . . . . . . . . . Machines | -11 -10 -9 -8 -7 -6 -5 -4 -4 -4 -4 -4 -4 -3 -3 -3 -2 -2 ---------- Run | Yrd Mat Mat Mat Fac Fac Fac Fac Was Fac Upp Upp Zhi Pro Res Tes Res Qua Machines Disabled 10 | . . . . 1 . . 1 . . 1 . . . . 4 1 2 Max in Single Turn 1 | . . . . 1 . . 1 . . 1 . . . . 1 1 1 Machines Repaired . | . . . . . . . . . . . . . . . . . . Machines Dismantled . | . . . . . . . . . . . . . . . . . . Machines Sabotaged . | . . . . . . . . . . . . . . . . . . Overloaded Fab Kills . | . . . . . . . . . . . . . . . . . . Hacking | -11 -10 -9 -8 -7 -6 -5 -4 -4 -4 -4 -4 -4 -3 -3 -3 -2 -2 --------- Run | Yrd Mat Mat Mat Fac Fac Fac Fac Was Fac Upp Upp Zhi Pro Res Tes Res Qua Machines Accessed 41 | . 1 2 3 3 2 5 3 . 1 . 1 4 . 4 6 1 5 Terminals 21 | . 1 2 2 1 2 1 2 . 1 . . . . 2 2 1 4 Fabricators 6 | . . . . 1 . 2 1 . . . . . . . 2 . . Repair Stations 3 | . . . . . . . . . . . . . . 1 1 . 1 Recycling Units 1 | . . . . . . 1 . . . . . . . . . . . Scanalyzers 1 | . . . . 1 . . . . . . . . . . . . . Garrison Access 4 | . . . 1 . . 1 . . . . . . . 1 1 . . Total Hacks 108 | . 2 5 7 7 8 13 6 . 2 . 1 17 . 8 13 4 15 Successful 56 | . . 3 2 5 3 5 2 . 1 . 1 17 . 1 4 3 9 Failed 52 | . 2 2 5 2 5 8 4 . 1 . . . . 7 9 1 6 Catastrophic 7 | . 1 . 1 1 . 1 1 . . . . . . . 2 . . Database Lockouts . | . . . . . . . . . . . . . . . . . . Manual 29 | . 2 5 . . 5 . 2 . 2 . . . . 2 4 1 6 Terminals 49 | . 2 5 4 2 8 3 4 . 2 . . . . 4 3 4 8 Fabricators 11 | . . . . 2 . 4 2 . . . . . . . 3 . . Repair Stations 12 | . . . . . . . . . . . . . . 3 2 . 7 Recycling Units 4 | . . . . . . 4 . . . . . . . . . . . Scanalyzers 3 | . . . . 3 . . . . . . . . . . . . . Garrison Access 11 | . . . 3 . . 2 . . . . . . . 1 5 . . Terminal Hacks 36 | . . 3 2 . 3 . 2 . . . 1 17 . 1 2 3 2 Record 7 | . . . . . . . . . . . . 5 . . . 1 1 Part Schematic 6 | . . 1 . . 1 . . . . . . 4 . . . . . Robot Schematic 1 | . . 1 . . . . . . . . . . . . . . . Robot Analysis 5 | . . 1 . . . . . . . . . 4 . . . . . Prototype ID Bank 6 | . . . 1 . . . 1 . . . . 4 . . . . . Open Door 1 | . . . . . . . . . . . 1 . . . . . . Branch Access Points 4 | . . . . . . . . . . . . . . 1 1 1 1 Locate Traps 2 | . . . 1 . . . 1 . . . . . . . . . . Registered Components 1 | . . . . . . . . . . . . . . . . 1 . Zone Layout 3 | . . . . . 2 . . . . . . . . . 1 . . Fabricator Hacks 5 | . . . . 2 . 2 . . . . . . . . 1 . . Load Schematic 2 | . . . . 1 . 1 . . . . . . . . . . . Build 3 | . . . . 1 . 1 . . . . . . . . 1 . . Repair Station Hacks 4 | . . . . . . . . . . . . . . . . . 4 Scan Component 2 | . . . . . . . . . . . . . . . . . 2 Repair 2 | . . . . . . . . . . . . . . . . . 2 Recycling Unit Hacks 3 | . . . . . . 3 . . . . . . . . . . . Process 1 | . . . . . . 1 . . . . . . . . . . . Retrieve Matter 2 | . . . . . . 2 . . . . . . . . . . . Scanalyzer 3 | . . . . 3 . . . . . . . . . . . . . Insert Component 1 | . . . . 1 . . . . . . . . . . . . . Analyze 2 | . . . . 2 . . . . . . . . . . . . . Garrison Access Hacks . | . . . . . . . . . . . . . . . . . . Unauthorized Hacks 5 | . . . . . . . . . 1 . . . . . 1 . 3 Terminals 4 | . . . . . . . . . 1 . . . . . . . 3 Assimilate 3 | . . . . . . . . . 1 . . . . . . . 2 Disrupt 1 | . . . . . . . . . . . . . . . . . 1 Fabricators 1 | . . . . . . . . . . . . . . . 1 . . Liberate 1 | . . . . . . . . . . . . . . . 1 . . Repair Stations . | . . . . . . . . . . . . . . . . . . Recycling Units . | . . . . . . . . . . . . . . . . . . Scanalyzers . | . . . . . . . . . . . . . . . . . . Garrison Access . | . . . . . . . . . . . . . . . . . . Data Cores Recovered 4 | . . 1 . . 1 . 1 . . . . . . 1 . . . Used 2 | . . . . . 1 . . . . . . . . 1 . . . Hacking Detections 30 | . 1 2 2 3 2 3 3 . 1 . . . . 4 4 1 4 Full Trace Events 5 | . 1 . . 3 . 1 . . . . . . . . . . . Feedback Events . | . . . . . . . . . . . . . . . . . . Feedback Blocked . | . . . . . . . . . . . . . . . . . . Robot Schematics Acquired 1 | . . 1 . . . . . . . . . . . . . . . Robots Built 5 | . . . . 1 . 1 . . . . . . . . 3 . . Authchips . | . . . . . . . . . . . . . . . . . . Time 366 | . . . . 81 . 81 . . . . . . . . 204 . . Total Robot Build Rating 26 | . . . . 1 . 1 . . . . . . . . 24 . . Part Schematics Acquired 7 | . . 1 . 1 1 . . . . . . 4 . . . . . Parts Built . | . . . . . . . . . . . . . . . . . . Authchips . | . . . . . . . . . . . . . . . . . . Time . | . . . . . . . . . . . . . . . . . . Total Part Build Rating . | . . . . . . . . . . . . . . . . . . Part Studies Acquired . | . . . . . . . . . . . . . . . . . . Parts Repaired 2 | . . . . . . . . . . . . . . . . . 2 Time 59 | . . . . . . . . . . . . . . . . . 59 Parts Recycled . | . . . . . . . . . . . . . . . . . . Recycled Matter 17 | . . . . . . 17 . . . . . . . . . . . Retrieved Matter 17 | . . . . . . 17 . . . . . . . . . . . Retrieved Components . | . . . . . . . . . . . . . . . . . . Parts Scanalyzed 1 | . . . . 1 . . . . . . . . . . . . . Part Schematics Acquired 1 | . . . . 1 . . . . . . . . . . . . . Parts Damaged 1 | . . . . 1 . . . . . . . . . . . . . Bothacking | -11 -10 -9 -8 -7 -6 -5 -4 -4 -4 -4 -4 -4 -3 -3 -3 -2 -2 ------------ Run | Yrd Mat Mat Mat Fac Fac Fac Fac Was Fac Upp Upp Zhi Pro Res Tes Res Qua Used RIF Installer . | . . . . . . . . . . . . . . . . . . Robots Hacked . | . . . . . . . . . . . . . . . . . . Non-combat . | . . . . . . . . . . . . . . . . . . Combat . | . . . . . . . . . . . . . . . . . . Robot Hacks Applied . | . . . . . . . . . . . . . . . . . . Relay Couplers Released . | . . . . . . . . . . . . . . . . . . Fabnet Peak Effective % . | . . . . . . . . . . . . . . . . . . Robots Rewired . | . . . . . . . . . . . . . . . . . . Allies Hacked . | . . . . . . . . . . . . . . . . . . Hacks Repelled . | . . . . . . . . . . . . . . . . . . Allies | -11 -10 -9 -8 -7 -6 -5 -4 -4 -4 -4 -4 -4 -3 -3 -3 -2 -2 -------- Run | Yrd Mat Mat Mat Fac Fac Fac Fac Was Fac Upp Upp Zhi Pro Res Tes Res Qua Total Allies 9 | . . . . 1 . 1 . . . . . . . . 6 . 1 Largest Group 6 | . . . . 1 . . . . . . . . . . 6 2 1 Highest-Rated Group 267 | . . . . 14 . . . . . . . . . . 267 94 10 Highest-Rated Ally 47 | . . . . 14 . . . . . . . . . . 47 47 10 Total Orders . | . . . . . . . . . . . . . . . . . . Ally Attacks 12 | . . . . . . . . . . . . . . . 3 9 . Total Damage 245 | . . . . . . . . . . . . . . . 77 168 . Kills 3 | . . . . . . . . . . . . . . . . 3 . Allies Corrupted . | . . . . . . . . . . . . . . . . . . Allies Melted . | . . . . . . . . . . . . . . . . . . Intel | -11 -10 -9 -8 -7 -6 -5 -4 -4 -4 -4 -4 -4 -3 -3 -3 -2 -2 ------- Run | Yrd Mat Mat Mat Fac Fac Fac Fac Was Fac Upp Upp Zhi Pro Res Tes Res Qua Active Infowar (turns) 5032 | 491 187 450 608 337 141 618 361 25 85 88 197 68 107 263 412 356 238 Sensors 2959 | . . . . . 141 618 361 25 85 88 197 68 107 263 412 356 238 Seismic 2073 | 491 187 450 608 337 . . . . . . . . . . . . . Robot Analysis Total 5 | . . 1 . . . . . . . . . 4 . . . . . Derelict Logs Recovered 1 | . . . . . . . . . . . 1 . . . . . . Drone Launches . | . . . . . . . . . . . . . . . . . . Drone Recoveries . | . . . . . . . . . . . . . . . . . . Exploration | -11 -10 -9 -8 -7 -6 -5 -4 -4 -4 -4 -4 -4 -3 -3 -3 -2 -2 ------------- Run | Yrd Mat Mat Mat Fac Fac Fac Fac Was Fac Upp Upp Zhi Pro Res Tes Res Qua Turns Passed 5228 | 581 187 450 608 345 142 618 361 25 85 88 197 68 107 263 412 356 335 Spaces Moved 6531 | 383 110 254 276 572 293 897 636 71 28 242 442 161 276 369 612 422 487 Core 4 | 4 . . . . . . . . . . . . . . . . . Treads . | . . . . . . . . . . . . . . . . . . Legs 982 | 379 110 254 239 . . . . . . . . . . . . . . Wheels . | . . . . . . . . . . . . . . . . . . Hover 5545 | . . . 37 572 293 897 636 71 28 242 442 161 276 369 612 422 487 Flight . | . . . . . . . . . . . . . . . . . . Fastest Speed 27 | 50 120 120 42 38 34 30 35 35 35 35 31 30 30 30 31 27 28 Average Speed 51 | 119 120 143 194 38 34 34 35 35 35 35 33 30 30 31 36 28 29 Slowest Speed 260 | 120 120 190 260 38 34 40 35 35 35 35 94 31 30 36 86 30 104 Overloaded Moves . | . . . . . . . . . . . . . . . . . . Propulsion Burnouts . | . . . . . . . . . . . . . . . . . . Robots Hopped . | . . . . . . . . . . . . . . . . . . Potential Cave-ins 2 | . . . . . . . . . . . . . 2 . . . . Cave-ins Triggered . | . . . . . . . . . . . . . . . . . . Teleports 2 | . . . . . . . . . . . . . . . 1 . 1 Exploration Rate (%) 30 | 10 18 22 34 11 12 35 19 61 1 48 55 60 41 10 61 14 43 Regions Visited 17 Branch Regions 6 Pre-discovered Areas 3 | . . . . . . . . . . . . 3 . . . . . Known Exits Taken 11 | . . . . 1 1 1 . . 1 1 1 1 1 1 1 1 . Unknown Exits Taken 4 | 1 1 1 1 . . . . . . . . . . . . . . Scrap Searched 2 | . . . . . . . . . . 1 . . 1 . . . . Spaces Dug 36 | . . . 1 1 . 6 . . . . . . 5 3 2 16 2 Terrain Destroyed 123 | . . . 2 1 . 46 5 . 1 . 2 . 6 4 3 50 3 Melee 8 | . . . . 1 . . . . . . . . 2 3 2 . . Projectile 41 | . . . 2 . . 16 5 . 1 . 2 . 4 1 1 6 3 AOE 74 | . . . . . . 30 . . . . . . . . . 44 . Terrain Rammed . | . . . . . . . . . . . . . . . . . . Walls Destroyed . | . . . . . . . . . . . . . . . . . . Machines Disabled . | . . . . . . . . . . . . . . . . . . Actions | -11 -10 -9 -8 -7 -6 -5 -4 -4 -4 -4 -4 -4 -3 -3 -3 -2 -2 --------- Run | Yrd Mat Mat Mat Fac Fac Fac Fac Was Fac Upp Upp Zhi Pro Res Tes Res Qua Total 7973 | 441 137 300 322 661 319 1146 742 70 101 242 477 178 288 466 767 642 674 Wait 878 | 13 12 18 6 44 11 192 65 . 67 . 24 1 . 49 86 199 91 Move 6515 | 382 109 253 275 571 292 896 636 70 27 241 441 160 275 368 611 421 487 Hop . | . . . . . . . . . . . . . . . . . . Pick Up 67 | 6 2 2 10 8 3 6 9 . 2 . 1 2 1 6 3 1 5 Fast Attach 44 | 7 . 2 5 1 . 4 2 . . . . 2 . 1 15 . 5 Attach 36 | . . 1 3 2 2 4 2 . 2 . 1 . . 7 3 4 5 Detach 2 | . . . . . . . . . . . . . . . . 1 1 Swap 59 | 1 . 2 1 8 4 8 4 . . . 2 7 1 2 14 2 3 Drop 81 | 1 . 2 10 9 1 7 6 . 2 . 1 6 2 4 18 1 11 Fire 172 | 31 14 20 12 16 6 25 11 . 1 . 4 . 4 1 9 13 5 Melee 57 | . . . . 2 . 4 7 . . 1 3 . 5 28 7 . . Ram 8 | . . . . . . . . . . . . . . . 1 . 7 Kick . | . . . . . . . . . . . . . . . . . . Crush . | . . . . . . . . . . . . . . . . . . Escape Stasis 54 | . . . . . . . . . . . . . . . . . 54 Rewire . | . . . . . . . . . . . . . . . . . . Trap . | . . . . . . . . . . . . . . . . . . Miscellaneous . | . . . . . . . . . . . . . . . . . . Route ------- -11/Scrapyard -10/Materials -9/Materials -8/Materials -7/Factory -6/Factory -5/Factory -4/Factory -4/Waste -4/Factory -4/Upper Caves -4/Upper Caves -4/Zhirov -3/Proximity Caves -3/Research (discovered 2 exits: *Tes x2) -3/Testing -2/Research (discovered 2 exits: *Qua x2) -2/Quarantine History --------- Turn | Location | Event 3 | -11/Scrapyard | Discovered new exit (range 16) 582 | -11/Scrapyard | Entered Materials 583 | -10/Materials | Build established: Mutant 646 | -10/Materials | Discovered new exit (range 15) 769 | -10/Materials | Entered another Materials area 769 | -9/Materials | Evolved 2 slots: Utility x1, Weapon x1 1138 | -9/Materials | Discovered new exit (range 8) 1219 | -9/Materials | Entered another Materials area 1219 | -8/Materials | Evolved 2 slots: Propulsion x1, Utility x1 1297 | -8/Materials | Build established: Scavenger-Gunner 1608 | -8/Materials | Build established: Gunner 1811 | -8/Materials | Discovered new exit (range 11) 1827 | -8/Materials | Entered Factory 1827 | -7/Factory | Evolved 2 slots: Propulsion x1, Utility x1 1930 | -7/Factory | Fabricated M-13 Machinist? 1998 | -7/Factory | Discovered new exit (range 4) 2172 | -7/Factory | Identified exit to Factory 2172 | -7/Factory | Entered another Factory area 2172 | -6/Factory | Evolved 2 slots: Propulsion x1, Utility x1 2290 | -6/Factory | Discovered new exit (range 15) 2312 | -6/Factory | Identified exit to Factory 2314 | -6/Factory | Entered another Factory area 2314 | -5/Factory | Evolved 2 slots: Propulsion x1, Utility x1 2722 | -5/Factory | Fabricated M-13 Machinist? 2751 | -5/Factory | Build established: Mutant 2907 | -5/Factory | Discovered new exit (range 15) 2932 | -5/Factory | Identified exit to Factory 2932 | -5/Factory | Entered another Factory area 2932 | -4/Factory | Evolved 2 slots: Power x1, Propulsion x1 3293 | -4/Factory | Sucked down chute 3293 | -4/Factory | Entered Waste 3299 | -4/Waste | Spotted C-40 Crusher 3300 | -4/Waste | Spotted C-40 Crusher 3305 | -4/Waste | Spotted C-40 Crusher 3308 | -4/Waste | EMP discharged 3310 | -4/Waste | Spotted C-40 Crusher 3312 | -4/Waste | Discovered new exit (range 14) 3318 | -4/Waste | Identified exit to Factory 3318 | -4/Waste | Entered Factory 3382 | -4/Factory | Discovered new exit (range 11) 3397 | -4/Factory | Identified exit to Upper Caves 3403 | -4/Factory | Entered Upper Caves 3417 | -4/Upper Caves | Entered a destroyed Warlord outpost 3468 | -4/Upper Caves | Encountered a Warlord checkpoint 3485 | -4/Upper Caves | Discovered new exit (range 15) 3490 | -4/Upper Caves | Identified exit to Upper Caves 3491 | -4/Upper Caves | Entered another Upper Caves area 3528 | -4/Upper Caves | Learned Research interactive machine intel 3677 | -4/Upper Caves | Spotted B-86 Titan 3685 | -4/Upper Caves | Discovered new exit (range 12) 3688 | -4/Upper Caves | Identified exit to Zhirov 3688 | -4/Upper Caves | Entered Zhirov 3688 | -4/Zhirov | Discovered new exit (range 3) 3694 | -4/Zhirov | Met Zhirov 3701 | -4/Zhirov | Learned location of Command (-1) 3701 | -4/Zhirov | Learned location of Testing (-3) 3701 | -4/Zhirov | Learned location of Quarantine (-2) 3703 | -4/Zhirov | Zhirov requested help retrieving the SGEMP Prototype 3712 | -4/Zhirov | Found Alien Artifact 3712 | -4/Zhirov | Identified Integrated Reactor 3712 | -4/Zhirov | Installed Integrated Reactor, increased core energy generation (+10) 3719 | -4/Zhirov | Found Alien Artifact 3755 | -4/Zhirov | Identified exit to Proximity Caves 3756 | -4/Zhirov | Entered Proximity Caves 3771 | -3/Proximity Caves | Spotted B-86 Titan 3839 | -3/Proximity Caves | Discovered new exit (range 6) 3840 | -3/Proximity Caves | Identified exit to Research 3863 | -3/Proximity Caves | Entered Research 3863 | -3/Research | Evolved 2 slots: Utility x2 3864 | -3/Research | Loaded intel: 47 interactive machine locations 3902 | -3/Research | Identified exit to Testing 3904 | -3/Research | Build established: Sprinter 4063 | -3/Research | Lost 6 parts (1p1n3u1w) 4090 | -3/Research | Spotted B-86 Titan 4126 | -3/Research | Entered Testing 4175 | -3/Testing | Found Prototype Device 4175 | -3/Testing | Identified Exp. EM Disruption Field 4284 | -3/Testing | Found Prototype Hackware 4284 | -3/Testing | Identified System Mapper 4391 | -3/Testing | Found Prototype Device 4391 | -3/Testing | Identified AEGIS Remote Shield 4410 | -3/Testing | Identified Transdimensional Reconstructor 4410 | -3/Testing | Warped through subspace 4465 | -3/Testing | Discovered new exit (range 9) 4467 | -3/Testing | Identified exit to Research 4478 | -3/Testing | Found Prototype Hackware 4496 | -3/Testing | Found Prototype Ballistic Cannon 4496 | -3/Testing | Identified Omega Cannon 4511 | -3/Testing | Fabricated B-74 Champion? 4538 | -3/Testing | Entered Research 4538 | -2/Research | Accompanied by 2 allies 4538 | -2/Research | Evolved 2 slots: Propulsion x1, Utility x1 4539 | -2/Research | Identified Ghost Barrier 4553 | -2/Research | Identified exit to Quarantine 4853 | -2/Research | Build established: Hacker-Sprinter 4894 | -2/Research | Entered Quarantine 4907 | -2/Quarantine | Found Alien Artifact 4909 | -2/Quarantine | Identified Subatomic Replicator 4909 | -2/Quarantine | Used Subatomic Replicator to replicate Omega Cannon 4969 | -2/Quarantine | Repaired Mic. Antimatter Reactor 4996 | -2/Quarantine | Repaired Gravmag Array 5129 | -2/Quarantine | Found Transdimensional Reconstructor 5132 | -2/Quarantine | Warped through subspace 5150 | -2/Quarantine | Scanned by Researcher 5185 | -2/Quarantine | Spotted Alpha 7 5189 | -2/Quarantine | System corruption reached 10% 5216 | -2/Quarantine | Core integrity fell below 50% 5227 | -2/Quarantine | Core integrity fell below 20% 5229 | -2/Quarantine | Destroyed by Alpha 7 via exploding Antimatter Diverter Last Messages --------------- 05216_ C-65 Expert is analyzing... 05217_ Penetrated by Slug. 05217_ Slug penetrates Antimatter Diverter. 05219_ System corrupted: Matter fused (-5). 05220_ Held in stasis. 05220_ Penetrated by Slug. 05220_ Slug penetrates Antimatter Diverter. 05222_ Lrg. Storage Unit destroyed. 05223_ Penetrated by Slug. 05223_ Slug penetrates Antimatter Diverter. 05224_ Held in stasis. 05224_ C-65 Expert is analyzing... 05225_ Dropped Cmb. Linear Gravjet. 05225_ Dropped Imp. Gyrokinetic Inverter. 05226_ Penetrated by Slug. 05228_ Held in stasis. 05228_ C-65 Expert is analyzing... 05229_ Antimatter Diverter explodes. 05229_ S-43 Plague destroyed. 05229_ Antimatter Diverter explodes. Map ----- +----------------------------------------------------+ | ????????????# #????### ###""" #?????????????????? | | ????????????# #??????# #?# #?????????????????? | | ####+######## #??????# #?#######?????????????????? | | #??????# #?????????????????????????? | | #??????#*#?????????????????????????? | | ######## #?????????????????????????? | | #?????????????????????????? | | ################### #?????????????????????????? | | ???###????????????# #?????????????????????????? | | ??? ????????????# #?????????????????????????? | | ??? = ????????????# #?????????????????????????? | | ??? ????????????# #?????????????????????????? | | ??? ???????????# =#?????????????????????????? | | ??"" ""???????????# #?????????????????????????? | | ???" ""???????????# #?????????????????????????? | | ???" "????????????# #???#?????????????????????? | | ??? ????????????# ## T####??????????????????? | | ####/############## + """#??????????????????? | | # ""#??????????????????? | | # """#??????????????????? | | #########?????????????????? | | # #?????????????????? | | #####+############# # #?????????????????? | | ## # #= #?????????????????? | | ""## """ # #p=% #?????????????????? | | ""## ""/"" # #s@!! #?????????????????? | | ""## """" # 7c #?????????????????? | | T## # #s #?????????????????? | | ""## # #s #?????????????????? | | ""############/#### # ps #?????????????????? | | ""#?????# # #?????????????????? | | #?????# # #?????????????????? | | ###?????# #########?????????????????? | | ????????# #?????????????????????????? | | ????????####+######+######???????????????????????? | | ?????????? ??# #???????????????????????? | | ????????# """ # #???????????????????????? | | ????????# """ ! #T "#???????????????????????? | | ????????# """ #"" * ""#???????????????????????? | | ????????# #!"" ""!#???????????????????????? | | ????????# #!!"""!!#???????????????????????? | | ????????# [ "T" #########???????????????????????? | | ?????????? """ #???????????????????????????????? | | ???????????= ? #???????????????????????????????? | | ???????????????#?#???????????????????????????????? | | ?????????????????????????????????????????????????? | | ?????????????????????????????????????????????????? | | ?????????????????????????????????????????????????? | | ?????????????????????????????????????????????????? | | ?????????????????????????????????????????????????? | +----------------------------------------------------+ Best States ------------- Heat Dissipation 87 Energy Generation 49 Energy Capacity 410 Matter Stores 300 Matter Capacity 300 Sight Range 16 Robot Scan Range 16 Terrain Scan Density 10 Armor Coverage 225 Propulsion Shielding 66 Evasion (%) 59 Targeting Accuracy 14 Core Analysis 9 Particle Charging 30 Offensive Hacking 20 Defensive Hacking 20 Item Schematics ----------------- Hcp. Storage Unit | -9/Materials | Hacked Aerolev Unit | -7/Factory | Scanalyzed Imp. Airjet | -6/Factory | Hacked Imp. Arc Thrower | -4/Zhirov | Free Exp. Optical Array | -4/Zhirov | Free Exp. Heat Sink | -4/Zhirov | Free Assault Drone Bay | -4/Zhirov | Free Robot Schematics ------------------ M-13 Machinist | -9/Materials | Hacked Fabricated ------------ M-13 Machinist | x1 | -7/Factory M-13 Machinist | x1 | -5/Factory B-74 Champion | x3 | -3/Testing | Preloaded Repaired ---------- Mic. Antimatter Reactor | 17% | -2/Quarantine Gravmag Array | 27% | -2/Quarantine Studied --------- None Alien Tech Used ----------------- Integrated Reactor Transdimensional Reconstructor Subatomic Replicator Achievements -------------- None Challenges ------------ None Game ------ Seed CommGravmagReactor Manual? 0 Play Time 01:01:35 Cumulative 271.7 hours Start 2025.11.10 @ 22:44:15 End 2025.11.10 @ 23:43:36 Sessions 1 Manual Loads 0 Difficulty Rogue Special Mode None Game No. 592 Rogue 592 Adventurer 0 Explorer 0 Win Type - Total 20 Types 14/0/4/1/1/0/0/0/0/0 Lore% 80 Gallery% 71 Achievement% 48 Wizard Run 0 Options --------- Layout 0 ASCII 0 Keyboard 0 Movement Numpad Keybinds 0 Fullscreen 2 Font 18/Terminus Map View 76x50 Zoom Use 0% Tactical HUD 1 Map Filters NONE Filters SATURATION(100) Steam 1 RUN: 31c1b01f-f84a-4bde-8481-4c6219536907